Cogmind - Beta 12 *** ADVENTURER MODE // 2023.05.01 @ 21:01:45 Player: zxpr0jk Result: Destroyed by X-87 Electro with Compact HERF Cannon Performance ------------- Evolutions (6) 3000 Regions Visited (16) 3200 Robots Destroyed (274) 1370 Value Destroyed (12323) 12323 Prototype IDs (32) 640 Alien Tech Used (0) 0 Bonus (4026) 4026 TOTAL SCORE: 24559 Bonus ------- High Alert Combat Kills 335 Follower Combat Kills 645 Met Warlord at Base 500 MAIN.C Attacked Warlord 500 Warlord Defense Kills 3202 Friendly Fire -1156 Cogmind --------- Core Integrity 0/1150 Matter 162/300 Energy 14/100 System Corruption 2% Temperature Cool (0) Movement Core (100) Ox1 Location -4/Warlord Parts ------- > --- POWER (2) -------- (None) > --- PROPULSION (4) --- (None) > --- UTILITY (11) ----- Improved Target Analyzer Improved Target Analyzer Experimental Target Analyzer Experimental Cloaking Device Graphene Brace Advanced Thermal Shield > --- WEAPON (2) ------- (None) > --- INVENTORY (5) ---- (None) Peak State ------------ > --- POWER ------------ Vortex Chain Reactor > --- PROPULSION ------- Armored Heavy Treads Experimental Myomer Leg Experimental Myomer Leg > --- UTILITY ---------- Improved Targeting Computer Target Analyzer Improved Target Analyzer Experimental Target Analyzer Weapon Cycler Experimental Cloaking Device Weapon Shielding Graphene Brace Experimental Focal Shield Advanced Thermal Shield Minesniffer Drone Bay > --- WEAPON ----------- Vortex Shotgun Slug Cannon > --- INVENTORY -------- Plasma Storm [Rating: 137] Favorites ----------- Power Neutrino Core Engine Improved Deuterium Engine Power Core Neutrino Core Reactor Antimatter Reactor Propulsion Carbon-fiber Leg Treads Armored Treads Leg Carbon-fiber Leg Hover Unit Backup Propulsion III Utility Core Analyzer Device Advanced Thermal Shield Storage Large Storage Unit Processor Core Analyzer Hackware Hacking Suite Protection Hardened Medium Armor Plating Weapon Thunder Hammer Energy Gun Cooled Pulse Rifle Energy Cannon Light EM Pulse Cannon Ballistic Gun Coil Gun Ballistic Cannon Tri-rail Accelerator Special Weapon Improved Remote Datajack Impact Weapon Thunder Hammer Build | -11 -10 -9 -8 -7 -7 -7 -6 -6 -6 -6 -5 -5 -5 -4 -4 -4 ------- Run | Jun Mat Mat Mat Fac Was Fac Fac Was Fac Ext Fac Upp Upp Fac Upp War Slots Evolved 12 | . . 2 2 2 . . 2 . . . 2 . . 2 . . Power 1 | . . . . 1 . . . . . . . . . . . . Propulsion 2 | . . . 1 . . . . . . . 1 . . . . . Utility 9 | . . 2 1 1 . . 2 . . . 1 . . 2 . . Weapon . | . . . . . . . . . . . . . . . . . Parts Attached 274 | 7 3 16 43 45 3 28 5 1 7 8 33 5 6 17 10 37 Power 36 | 2 . 3 2 8 1 6 . 1 1 1 6 . 3 . . 2 Engine 15 | 2 . 3 1 3 . 3 . . . . 2 . 1 . . . Core 19 | . . . 1 5 1 3 . . 1 1 4 . 2 . . 1 Reactor 2 | . . . . . . . . 1 . . . . . . . 1 Propulsion 57 | 2 1 1 12 6 2 8 2 . 1 4 3 . . 3 1 11 Treads 24 | 2 1 1 4 2 1 8 2 . 1 1 . . . . . 1 Leg 27 | . . . 8 4 1 . . . . 3 3 . . 3 1 4 Wheel . | . . . . . . . . . . . . . . . . . Hover 6 | . . . . . . . . . . . . . . . . 6 Flight . | . . . . . . . . . . . . . . . . . Utility 133 | 1 2 7 18 21 . 14 3 . 5 3 19 5 2 12 4 17 Device 62 | . . 1 5 10 . 5 . . 1 . 12 4 1 9 2 12 Storage 4 | 1 1 . . . . . . . . . 1 . . . 1 . Processor 22 | . 1 2 2 8 . 3 . . 1 . . . . . 1 4 Hackware 3 | . . . 2 1 . . . . . . . . . . . . Protection 42 | . . 4 9 2 . 6 3 . 3 3 6 1 1 3 . 1 Artifact . | . . . . . . . . . . . . . . . . . Weapon 48 | 2 . 5 11 10 . . . . . . 5 . 1 2 5 7 Energy Gun 13 | 1 . . 4 3 . . . . . . . . . . . 5 Energy Cannon 5 | . . 3 . 2 . . . . . . . . . . . . Ballistic Gun 16 | 1 . 1 7 1 . . . . . . 3 . . . 3 . Ballistic Cannon 6 | . . . . 4 . . . . . . . . . . . 2 Launcher . | . . . . . . . . . . . . . . . . . Special Weapon 2 | . . . . . . . . . . . . . . 1 1 . Impact Weapon 6 | . . 1 . . . . . . . . 2 . 1 1 1 . Slashing Weapon . | . . . . . . . . . . . . . . . . . Piercing Weapon . | . . . . . . . . . . . . . . . . . Special Melee Weapon . | . . . . . . . . . . . . . . . . . Unidentified Prototypes 22 | . . 2 3 8 . 1 . . . . 1 . . . . 7 Parts Lost 73 | . . . 7 14 2 1 . . 2 5 2 . 1 3 20 16 Power 10 | . . . . 2 1 . . . 1 1 1 . . . 2 2 Propulsion 14 | . . . 1 3 1 . . . . . . . 1 1 3 4 Utility 36 | . . . 4 7 . 1 . . 1 3 1 . . 2 11 6 Weapon 13 | . . . 2 2 . . . . . 1 . . . . 4 4 Highest Loss Streak 14 | . . . 3 14 2 1 . . 1 3 1 . 1 2 14 9 To Critical Strikes . | . . . . . . . . . . . . . . . . . Average Slot Usage (%) 88 | . 94 99 89 89 81 91 93 93 86 80 93 99 95 93 74 64 Engine 4 | . 14 11 6 5 . 6 6 2 1 2 4 . . . . 5 Core 5 | . . . 2 8 10 7 6 6 4 3 5 11 10 10 6 1 Treads 10 | . 28 22 13 . 2 22 20 20 14 10 . . . . . . Leg 9 | . . . 12 22 14 . . . . 3 20 23 18 15 10 4 Device 9 | . . 11 9 8 . . . . . . 10 13 21 27 24 21 Processor 23 | . 8 12 4 10 46 39 33 33 33 30 23 23 23 21 19 11 Protection 11 | . . 18 19 19 . 4 20 20 18 15 13 14 6 7 . . Energy Gun 2 | . 14 1 4 10 . . . . . . . . . . . 5 Ballistic Gun 1 | . 14 1 7 . . . . . . . 4 . . . 1 1 Ballistic Cannon 2 | . . . . 2 7 7 6 6 6 5 . . . . . 1 Impact Weapon 3 | . . 9 4 . . . . . . . 6 11 10 10 7 . Naked Turns . | . . . . . . . . . . . . . . . . . Heaviest Build 89 | 13 28 35 41 66 31 53 63 69 73 89 61 62 58 65 59 70 Greatest Support 90 | 40 40 40 60 75 70 70 64 64 90 90 73 73 73 75 60 70 Greatest Overweight (x) 10 | . . . . 1 10 1 1 1 1 4 . . . 1 1 4 Average Overweight (x) . | . . . . . . . . . . . . . . . . . Largest Inventory Capacity 15 | 8 15 15 5 5 5 5 5 5 5 5 5 5 5 5 5 5 Average Capacity 5 | 6 13 6 5 5 5 5 5 5 5 5 5 5 5 5 5 5 Most Carried 5 | 1 3 5 5 5 3 5 5 5 5 5 5 5 5 5 5 5 Average Carried 3 | . 1 1 3 3 2 4 3 4 3 3 3 3 4 2 3 3 Final Capacity 15 | 8 15 5 5 5 5 5 5 5 5 5 5 5 5 5 5 5 Final Carried 5 | 1 2 5 5 2 2 5 5 5 4 1 4 3 5 4 3 . Class Distribution -------------------- 64% | Scavenger-Mutant 31% | Mutant Dominant Class ---------------- Mutant | -10/Materials Mutant | -9/Materials Mutant | -8/Materials Mutant | -7/Factory Mutant | -7/Waste Mutant | -7/Factory Mutant | -6/Factory Scavenger-Mutant | -6/Waste Scavenger-Mutant | -6/Factory Scavenger-Mutant | -6/Extension Scavenger-Mutant | -5/Factory Scavenger-Mutant | -5/Upper Caves Scavenger-Mutant | -5/Upper Caves Scavenger-Mutant | -4/Factory Scavenger-Mutant | -4/Upper Caves Scavenger-Mutant | -4/Warlord Resources | -11 -10 -9 -8 -7 -7 -7 -6 -6 -6 -6 -5 -5 -5 -4 -4 -4 ----------- Run | Jun Mat Mat Mat Fac Was Fac Fac Was Fac Ext Fac Upp Upp Fac Upp War Matter Collected 6057 | 263 35 130 723 756 309 853 98 182 209 906 502 60 66 122 252 591 Remotely . | . . . . . . . . . . . . . . . . . Salvage Created 13450 | . 112 877 1446 1519 1454 1012 138 1125 364 1074 1185 138 330 1106 637 933 Parts 423 | . 14 37 59 78 5 63 5 7 23 33 42 4 3 11 12 27 Haulers Intercepted 4 | . . 1 . . . 2 . . . . . . . 1 . . Recyclers Shooed 5 | . . . 1 . . . . . . 1 . . . 3 . . Parts Field Recycled . | . . . . . . . . . . . . . . . . . Retrieved Matter . | . . . . . . . . . . . . . . . . . Parts Self-Destructed 8 | . . . . . . . . . . . . 3 . . 5 . Prevented 4 | . . . . . . . . . . . . 1 . . 3 . Kills | -11 -10 -9 -8 -7 -7 -7 -6 -6 -6 -6 -5 -5 -5 -4 -4 -4 ------- Run | Jun Mat Mat Mat Fac Was Fac Fac Was Fac Ext Fac Upp Upp Fac Upp War Combat Hostiles Destroyed 217 | . 3 15 29 30 6 22 3 5 9 20 18 5 8 10 13 21 Melee 34 | . . 3 12 . . . . . . . 3 2 4 4 6 . Guns 44 | . 3 . 14 13 . . . . . . 5 . . . 2 7 Cannons 101 | . . 9 . 16 6 22 3 5 9 20 . . . 1 . 10 AOE 4 | . . . . . . . . . . . . . . . . 4 Classes Destroyed 20 | . 2 6 4 2 1 . . . . 1 . . . . . 4 Worker 9 | . . . 1 2 . 3 . . . . 2 . . 1 . . Builder 10 | . . 2 1 4 . . . . . 1 1 . . 1 . . Hauler 4 | . . 1 . . . 2 . . . . . . . 1 . . Recycler 10 | . . . 1 3 . 1 . . . 2 . . . 3 . . Operator 7 | . . 1 2 . . 2 . . . 1 1 . . . . . Drone 2 | . . . . . . . . . . . . . . . . 2 Watcher 17 | . 3 4 1 2 . 2 . . 2 1 1 . . 1 . . Swarmer 24 | . 3 . 3 4 . . . . 1 . . 4 5 . 4 . Saboteur 1 | . . . . . . . . . . . . . . . . 1 Grunt 86 | . . 9 13 11 . 13 2 . 3 12 6 . . 5 3 9 Brawler 5 | . . . 1 1 . . 1 . . 1 . . . . . 1 Duelist 7 | . . 1 2 2 . . . . . 1 . . . . . 1 Sentry 23 | . . 5 6 1 . 1 . . 1 4 4 . 1 . . . Specialist 4 | . . . . 2 . . . . . . 2 . . . . . Hunter 17 | . . . 4 4 . 2 . . 1 . 2 . 1 . 2 1 Programmer 32 | . . . . 5 . 6 . . 3 . 4 1 1 5 4 3 Behemoth 2 | . . . . . . . . . . 1 . . . . . 1 Compactor 11 | . . . . . 6 . . 5 . . . . . . . . Striker 3 | . . . . . . . . . . . . . . . . 3 Executioner 1 | . . . . . . . . . . . . . . . . 1 Savage 1 | . . . . . . . . . . 1 . . . . . . Best Kill Streak 11 | . 3 5 10 11 4 5 3 2 3 3 3 2 5 6 4 4 Combat Bots Only 8 | . 3 4 8 8 4 4 3 2 3 3 3 2 5 4 4 4 Max Kills in Single Turn 3 | . 2 1 2 3 1 2 2 1 1 2 1 1 1 1 1 3 Gunslinging 1 | . 1 . . 1 . . . . . . . . . . . 1 Exploded 2 | . . . . . . . . . . . . . . . . 2 Melee 1 | . . 1 1 . . . . . . . 1 1 1 1 1 . Uniques/NPCs Destroyed . | . . . . . . . . . . . . . . . . . Combat | -11 -10 -9 -8 -7 -7 -7 -6 -6 -6 -6 -5 -5 -5 -4 -4 -4 -------- Run | Jun Mat Mat Mat Fac Was Fac Fac Was Fac Ext Fac Upp Upp Fac Upp War Damage Taken 15455 | . 108 375 2101 2637 117 639 45 . 527 1778 1224 409 322 781 1804 2588 Core 2208 | . 14 43 218 191 38 58 . . 164 173 125 . 10 67 533 574 Absorbed by Shields 977 | . . . . . . . . . . . . . . 657 122 198 Redirected to Shielding 142 | . . . . . . . . . 104 . . . . . . 38 Regen/Repaired (Parts) 1296 | . . . 253 . . . . . 194 . 557 . . 249 . 43 Core Remaining (%) 78 | 100 94 89 60 . . 59 . . . 60 . . 86 . . . Volleys Fired 484 | . 7 31 67 96 23 54 4 18 22 58 24 . . . 18 62 Largest 2 | . 2 1 2 2 1 1 1 1 1 1 2 . . . 1 2 Hottest 120 | . 70 56 89 60 60 60 60 60 60 60 66 . . . 35 120 Shots Fired 655 | . 14 31 109 149 24 55 4 18 24 62 48 . . . 17 100 Gun 331 | . 14 . 109 112 . . . . . . 48 . . . 17 31 Cannon 324 | . . 31 . 37 24 55 4 18 24 62 . . . . . 69 Launcher . | . . . . . . . . . . . . . . . . . Special . | . . . . . . . . . . . . . . . . . Kinetic 444 | . 7 . 79 37 24 55 4 18 24 62 48 . . . 17 69 Thermal 134 | . 7 . 15 112 . . . . . . . . . . . . Explosive . | . . . . . . . . . . . . . . . . . Electromagnetic 46 | . . 31 15 . . . . . . . . . . . . . Entropic 31 | . . . . . . . . . . . . . . . . 31 Robot Hit Streak 37 | . 5 13 15 31 19 21 9 22 12 23 28 . . . 37 14 Robot Miss Streak 4 | . 3 1 3 3 3 2 1 2 3 4 1 . . . 1 3 Penetration Max 1 | . . . 1 . . . . . . . 1 . . . . . Secondary Targets 7 | . 2 . 1 3 . . . . . . . . . . . 1 Max Gunslinging Chain 1 | . 1 . 1 1 . . . . . . . . . . . 1 Shots Hit Robots 781 | . 7 42 141 133 24 48 4 18 20 58 83 15 16 59 48 65 Core Hits 377 | . 7 16 46 70 19 43 6 19 21 50 17 1 1 7 10 44 Critical Kills 21 | . . 1 2 . . . . . . . 5 . 1 2 3 7 Critical Parts Destroyed 84 | . . 6 5 . . . . . . . 18 5 8 21 9 12 Critical Strikes 145 | . . 7 10 8 . 9 1 . 2 15 25 5 9 23 12 19 Burn 3 | . . . . 3 . . . . . . . . . . . . Destroy 24 | . . . 2 . . . . . . . 6 . . . 2 14 Blast 32 | . . . . 5 . 9 1 . 2 15 . . . . . . Smash 81 | . . 7 8 . . . . . . . 19 5 9 23 10 . Detonate 5 | . . . . . . . . . . . . . . . . 5 Melee Attacks 285 | . . 22 64 . . . . . . . 56 19 17 67 40 . Impact 285 | . . 22 64 . . . . . . . 56 19 17 67 40 . Slashing . | . . . . . . . . . . . . . . . . . Piercing . | . . . . . . . . . . . . . . . . . Sneak Attacks 13 | . . 5 2 . . . . . . . 2 . 1 3 . . Combat Hostiles 1 | . . . 1 . . . . . . . . . . . . . Follow-up Attacks 20 | . . . . . . . . . . . 6 2 2 6 4 . Damage Inflicted 34223 | . 101 1485 3831 4118 1592 2505 296 1297 1067 3519 3378 885 822 3150 2063 4114 Guns 6324 | . 90 . 1711 1844 . . . . . . 1002 . . . 215 1462 Cannons 13857 | . . 651 . 1927 1592 2463 296 1297 1014 3434 . . . . . 1183 Explosions 2016 | . . 92 44 347 . . . . 37 . 27 . . . . 1469 Melee 11872 | . . 742 2076 . . . . . . . 2349 885 822 3150 1848 . Ramming 154 | . 11 . . . . 42 . . 16 85 . . . . . . Kinetic 15714 | . 16 . 1275 1927 1592 2463 296 1297 1014 3434 1002 . . . 215 1183 Thermal 3989 | . 74 92 163 2191 . . . . . . . . . . . 1469 Explosive 52 | . . . . . . . . . 25 . 27 . . . . . Electromagnetic 980 | . . 651 317 . . . . . 12 . . . . . . . Impact 11872 | . . 742 2076 . . . . . . . 2349 885 822 3150 1848 . Slashing . | . . . . . . . . . . . . . . . . . Piercing . | . . . . . . . . . . . . . . . . . Entropic 1462 | . . . . . . . . . . . . . . . . 1462 Highest Corruption 23 | . . . 2 1 12 12 . 20 20 23 2 2 1 5 8 8 Average Corruption 8 | . . . 2 1 9 6 . 12 20 21 1 1 1 3 6 3 Corruption Purged 17 | . . . . . . 12 . . . . 3 2 . . . . Corruption Blocked . | . . . . . . . . . . . . . . . . . Effects 291 | . . . 10 13 7 83 . 11 40 77 2 1 5 14 24 4 Message Errors 72 | . . . 5 3 1 23 . 3 10 17 . . 1 4 5 . Matter Fused 70 | . . . 1 3 1 22 . 4 7 17 . . 2 5 7 1 Heat Flow Errors 41 | . . . 2 . . 10 . 1 7 14 . 1 . 1 5 . Energy Discharges 31 | . . . 1 3 1 4 . 1 8 7 . . 1 . 3 2 Parts Rejected 3 | . . . . 1 . . . . . . . . 1 . 1 . Parts Fused 3 | . . . . . . 2 . . . 1 . . . . . . Data Loss (minor) 27 | . . . . 1 2 10 . 1 5 6 1 . . 1 . . Data Loss (major) 19 | . . . . 1 . 9 . 1 1 3 . . . 2 2 . Misfires 11 | . . . 1 . 1 1 . . 2 5 . . . . . 1 Alerts 8 | . . . . . 1 2 . . . 3 1 . . 1 . . Misdirections 3 | . . . . . . . . . . 3 . . . . . . Weapon Failures 3 | . . . . 1 . . . . . 1 . . . . 1 . Overload Shots . | . . . . . . . . . . . . . . . . . Overflow Damage 5293 | . . 356 307 76 . 73 . . 36 54 787 495 520 1481 865 243 Projectiles 299 | . . 28 . 29 . 73 . . 36 47 . . . 13 40 33 Explosions 257 | . . . . 47 . . . . . . . . . . . 210 Melee 4737 | . . 328 307 . . . . . . 7 787 495 520 1468 825 . Knockbacks 145 | . . 1 11 8 . 22 1 . 8 26 9 4 6 28 6 15 Impact 59 | . . 1 10 . . 1 . . . 1 9 4 6 22 5 . Kinetic 73 | . . . . 8 . 20 1 . 8 22 . . . . . 14 Secondary 13 | . . . 1 . . 1 . . . 3 . . . 6 1 1 Self-Inflicted Damage 491 | . . . 26 . . . . . 377 . . . . . . 88 Shots 9 | . . . 1 . . . . . 6 . . . . . . 2 Rammed 16 | . 3 . . . . 7 . . 1 5 . . . . . . Targets Rammed 18 | . 3 . . . . 8 . . 1 6 . . . . . . Kicked . | . . . . . . . . . . . . . . . . . Crushed 2 | . . . . . . 1 . . . 1 . . . . . . Highest Temperature 550 | . 80 180 422 336 336 323 171 336 307 550 406 148 10 185 214 266 Average Temperature 114 | . 31 55 132 85 147 81 89 139 76 152 176 79 10 114 94 84 Received Heat Transfer 4264 | . . 165 1143 348 . 171 27 . 39 1062 531 . 36 226 29 487 Effects 42 | . . . 12 2 . 1 . 2 . 16 9 . . . . . Shutdowns 11 | . . . 4 . . . . 1 . 3 3 . . . . . Energy Bleed 7 | . . . 2 . . 1 . . . 4 . . . . . . Interference 13 | . . . 3 2 . . . 1 . 3 4 . . . . . Matter Decay 4 | . . . 2 . . . . . . 2 . . . . . . Short Circuit 3 | . . . 1 . . . . . . 2 . . . . . . Damage (minor) 1 | . . . . . . . . . . 1 . . . . . . Damage (major) 2 | . . . . . . . . . . . 2 . . . . . Damage (core) 1 | . . . . . . . . . . 1 . . . . . . Siege Activations . | . . . . . . . . . . . . . . . . . Robots Corrupted . | . . . . . . . . . . . . . . . . . Combat Hostiles . | . . . . . . . . . . . . . . . . . Parts Fried 78 | . . 21 8 . . . . . . . 18 4 5 14 8 . Impact Corruptions 172 | . . 12 14 . . . . . . 1 29 15 19 52 28 2 Robots Melted 1 | . . . . 1 . . . . . . . . . . . . Combat Hostiles 1 | . . . . 1 . . . . . . . . . . . . Parts Melted 12 | . . . . 9 . . . . . 1 . . . . . 2 Heat Transferred 5271 | . 222 150 309 3640 . . . . . . . . . . . 950 Parts Sabotaged . | . . . . . . . . . . . . . . . . . Parts Stolen . | . . . . . . . . . . . . . . . . . Parts Stripped . | . . . . . . . . . . . . . . . . . Power Chain Reactions 3 | . . 1 1 . . . . . 1 . . . . . . . Missiles Intercepted . | . . . . . . . . . . . . . . . . . Alert | -11 -10 -9 -8 -7 -7 -7 -6 -6 -6 -6 -5 -5 -5 -4 -4 -4 ------- Run | Jun Mat Mat Mat Fac Was Fac Fac Was Fac Ext Fac Upp Upp Fac Upp War Peak Influence 725 | . 106 421 725 686 156 210 87 41 355 312 301 . . 214 . . Initial 281 | . . . 115 281 155 72 17 25 22 109 73 . . 47 . . Average 159 | . 49 165 479 298 131 50 24 32 90 142 157 . . 71 . . Maximum Alert Level 3 | . . 2 3 2 . 1 . . 1 1 1 . . 1 . . Low Security (%) 70 | 100 100 59 6 27 100 99 100 100 74 80 60 . . 96 . . Level 1 19 | . . 39 27 49 . . . . 25 19 39 . . 3 . . Level 2 8 | . . . 57 22 . . . . . . . . . . . . Level 3 . | . . . 8 . . . . . . . . . . . . . Level 4 . | . . . . . . . . . . . . . . . . . Level 5 . | . . . . . . . . . . . . . . . . . High Security . | . . . . . . . . . . . . . . . . . Max Security . | . . . . . . . . . . . . . . . . . Squads Dispatched 50 | . . 3 8 8 . 11 . . 6 3 8 . . 3 . . Investigation 14 | . . 1 2 . . 3 . . 1 3 2 . . 2 . . Extermination 15 | . . . . 4 . 6 . . 2 . 2 . . 1 . . Reinforcement 15 | . . 2 3 3 . 2 . . 2 . 3 . . . . . Assault 1 | . . . . 1 . . . . . . . . . . . . Garrison 5 | . . . 3 . . . . . 1 . 1 . . . . . Intercept . | . . . . . . . . . . . . . . . . . Searches Triggered . | . . . . . . . . . . . . . . . . . Construction Impeded 4 | . . . 1 . . . . . 2 . 1 . . . . . Haulers Reinforced 3 | . . . . 2 . 1 . . . . . . . . . . Active Scanning Responses . | . . . . . . . . . . . . . . . . . Cargo Convoy Interrupts 2 | . . . . 1 . . . . 1 . . . . . . . Stealth | -11 -10 -9 -8 -7 -7 -7 -6 -6 -6 -6 -5 -5 -5 -4 -4 -4 --------- Run | Jun Mat Mat Mat Fac Was Fac Fac Was Fac Ext Fac Upp Upp Fac Upp War Distress Signals 13 | . . 2 1 . . . . . . 5 . . . 2 . 3 Communications Jammed . | . . . . . . . . . . . . . . . . . Distress Signals . | . . . . . . . . . . . . . . . . . Times Spotted 349 | . 6 24 49 43 6 25 3 6 11 42 25 8 9 17 15 60 Peak Tracking Total 16 | . 3 4 5 7 3 4 3 4 2 6 4 3 5 7 5 16 Tactical Retreats 31 | . . 2 9 1 . . . . . 4 3 1 1 3 2 5 Traps | -11 -10 -9 -8 -7 -7 -7 -6 -6 -6 -6 -5 -5 -5 -4 -4 -4 ------- Run | Jun Mat Mat Mat Fac Was Fac Fac Was Fac Ext Fac Upp Upp Fac Upp War Traps Triggered 12 | . 3 1 . 2 . 3 1 . 1 1 . . . . . . Indirectly . | . . . . . . . . . . . . . . . . . Trap Hack Attempts . | . . . . . . . . . . . . . . . . . Triggered . | . . . . . . . . . . . . . . . . . Disarmed . | . . . . . . . . . . . . . . . . . Reprogrammed 3 | . . . . . . . . . . . 3 . . . . . Reused . | . . . . . . . . . . . . . . . . . Traps Extracted . | . . . . . . . . . . . . . . . . . Installed . | . . . . . . . . . . . . . . . . . Triggered 45 | . . . 1 . . . . . 1 . . . . . . 43 Machines | -11 -10 -9 -8 -7 -7 -7 -6 -6 -6 -6 -5 -5 -5 -4 -4 -4 ---------- Run | Jun Mat Mat Mat Fac Was Fac Fac Was Fac Ext Fac Upp Upp Fac Upp War Machines Disabled 32 | . . 3 2 9 . 3 . . 10 2 1 . . . . 2 Max in Single Turn 8 | . . 1 1 8 . 1 . . 6 1 1 . . . . 1 Garrison Access 2 | . . . . 1 . . . . . . 1 . . . . . Machines Repaired . | . . . . . . . . . . . . . . . . . Machines Sabotaged . | . . . . . . . . . . . . . . . . . Overloaded Fab Kills . | . . . . . . . . . . . . . . . . . Hacking | -11 -10 -9 -8 -7 -7 -7 -6 -6 -6 -6 -5 -5 -5 -4 -4 -4 --------- Run | Jun Mat Mat Mat Fac Was Fac Fac Was Fac Ext Fac Upp Upp Fac Upp War Machines Accessed 81 | . 5 4 11 4 . 14 1 . 7 13 10 2 3 4 . 3 Terminals 48 | . 4 3 5 1 . 9 1 . 4 12 6 1 1 1 . . Fabricators 1 | . . . . . . 1 . . . . . . . . . . Repair Stations 10 | . . . 2 2 . . . . 2 . 2 . . 2 . . Recycling Units 6 | . 1 . 2 . . 2 . . . 1 . . . . . . Scanalyzers 4 | . . 1 1 . . . . . 1 . . . . 1 . . Garrison Access 6 | . . . 1 1 . 2 . . . . 2 . . . . . Total Hacks 204 | . 8 13 37 6 . 27 1 . 13 32 37 2 3 18 . 7 Successful 135 | . 7 10 33 3 . 11 1 . 8 15 25 2 3 10 . 7 Failed 69 | . 1 3 4 3 . 16 . . 5 17 12 . . 8 . . Catastrophic 4 | . . . . 1 . 1 . . 1 . 1 . . . . . Database Lockouts . | . . . . . . . . . . . . . . . . . Manual 71 | . 6 4 14 2 . 18 1 . 4 7 11 1 2 1 . . Terminals 109 | . 7 10 18 1 . 17 1 . 6 31 15 1 1 1 . . Fabricators 3 | . . . . . . 3 . . . . . . . . . . Repair Stations 48 | . . . 9 4 . . . . 5 . 16 . . 14 . . Recycling Units 10 | . 1 . 4 . . 4 . . . 1 . . . . . . Scanalyzers 12 | . . 3 4 . . . . . 2 . . . . 3 . . Garrison Access 12 | . . . 2 1 . 3 . . . . 6 . . . . . Terminal Hacks 47 | . 2 4 7 . . 3 . . 4 11 4 2 3 . . 7 Record 14 | . . 2 . . . 1 . . 1 4 1 1 2 . . 2 Robot Analysis 2 | . . 1 1 . . . . . . . . . . . . . Prototype ID Bank 5 | . . . 1 . . . . . . . . . . . . 4 Open Door 10 | . . . . . . . . . 1 6 . 1 1 . . 1 Open DSF 5 | . . . . . . 2 . . 2 . 1 . . . . . Emergency Access Points 1 | . . . 1 . . . . . . . . . . . . . Locate Traps 5 | . 1 . 2 . . . . . . 1 1 . . . . . Reprogram Traps 1 | . . . . . . . . . . . 1 . . . . . Zone Layout 4 | . 1 1 2 . . . . . . . . . . . . . Fabricator Hacks 2 | . . . . . . 2 . . . . . . . . . . Load Schematic 1 | . . . . . . 1 . . . . . . . . . . Build 1 | . . . . . . 1 . . . . . . . . . . Repair Station Hacks 34 | . . . 8 2 . . . . 3 . 14 . . 7 . . Scan Component 18 | . . . 4 2 . . . . 1 . 7 . . 4 . . Repair 15 | . . . 4 . . . . . 1 . 7 . . 3 . . Refit 1 | . . . . . . . . . 1 . . . . . . . Recycling Unit Hacks 5 | . 1 . 2 . . 1 . . . 1 . . . . . . Report Inventory 4 | . 1 . 1 . . 1 . . . 1 . . . . . . Retrieve Components 1 | . . . 1 . . . . . . . . . . . . . Scanalyzer 9 | . . 3 4 . . . . . . . . . . 2 . . Insert Component 5 | . . 2 2 . . . . . . . . . . 1 . . Analyze 4 | . . 1 2 . . . . . . . . . . 1 . . Garrison Access Hacks 2 | . . . 1 . . . . . . . 1 . . . . . Unlock Access 1 | . . . 1 . . . . . . . . . . . . . Seal Access 1 | . . . . . . . . . . . 1 . . . . . Unauthorized Hacks 36 | . 4 3 11 1 . 5 1 . 1 3 6 . . 1 . . Terminals 28 | . 4 3 8 . . 3 1 . 1 3 4 . . 1 . . Assimilate 3 | . . . 3 . . . . . . . . . . . . . Botnet 25 | . 4 3 5 . . 3 1 . 1 3 4 . . 1 . . Fabricators . | . . . . . . . . . . . . . . . . . Repair Stations . | . . . . . . . . . . . . . . . . . Recycling Units 3 | . . . 2 . . 1 . . . . . . . . . . Reject 1 | . . . 1 . . . . . . . . . . . . . Recyclers 2 | . . . 1 . . 1 . . . . . . . . . . Scanalyzers . | . . . . . . . . . . . . . . . . . Garrison Access 5 | . . . 1 1 . 1 . . . . 2 . . . . . Watchers 5 | . . . 1 1 . 1 . . . . 2 . . . . . Data Cores Recovered 1 | . . . . . . 1 . . . . . . . . . . Used . | . . . . . . . . . . . . . . . . . Hacking Detections 56 | . 4 3 9 3 . 12 . . 6 9 7 . . 3 . . Full Trace Events 12 | . . . 1 . . 3 . . 1 3 2 . . 2 . . Feedback Events . | . . . . . . . . . . . . . . . . . Feedback Blocked . | . . . . . . . . . . . . . . . . . Robot Schematics Acquired . | . . . . . . . . . . . . . . . . . Robots Built . | . . . . . . . . . . . . . . . . . Authchips . | . . . . . . . . . . . . . . . . . Time . | . . . . . . . . . . . . . . . . . Total Robot Build Rating . | . . . . . . . . . . . . . . . . . Part Schematics Acquired 4 | . . 1 2 . . . . . . . . . . 1 . . Parts Built 1 | . . . . . . 1 . . . . . . . . . . Authchips . | . . . . . . . . . . . . . . . . . Time 36 | . . . . . . 36 . . . . . . . . . . Total Part Build Rating 3 | . . . . . . 3 . . . . . . . . . . Parts Repaired 13 | . . . 3 . . . . . 1 . 6 . . 3 . . Time 666 | . . . 116 . . . . . 44 . 344 . . 162 . . Parts Recycled . | . . . . . . . . . . . . . . . . . Recycled Matter . | . . . . . . . . . . . . . . . . . Retrieved Matter . | . . . . . . . . . . . . . . . . . Retrieved Components 3 | . . . 3 . . . . . . . . . . . . . Parts Scanalyzed 4 | . . 1 2 . . . . . . . . . . 1 . . Part Schematics Acquired 4 | . . 1 2 . . . . . . . . . . 1 . . Parts Damaged . | . . . . . . . . . . . . . . . . . Bothacking | -11 -10 -9 -8 -7 -7 -7 -6 -6 -6 -6 -5 -5 -5 -4 -4 -4 ------------ Run | Jun Mat Mat Mat Fac Was Fac Fac Was Fac Ext Fac Upp Upp Fac Upp War Used RIF Installer . | . . . . . . . . . . . . . . . . . Robots Hacked . | . . . . . . . . . . . . . . . . . Non-combat . | . . . . . . . . . . . . . . . . . Combat . | . . . . . . . . . . . . . . . . . Robot Hacks Applied . | . . . . . . . . . . . . . . . . . Relay Couplers Released 3 | . . . . 3 . . . . . . . . . . . . Programmers 3 | . . . . 3 . . . . . . . . . . . . Fabnet Peak Effective % . | . . . . . . . . . . . . . . . . . Robots Rewired 16 | . . . . . . . . . . 11 . . . . . 5 Allies Hacked . | . . . . . . . . . . . . . . . . . Hacks Repelled . | . . . . . . . . . . . . . . . . . Allies | -11 -10 -9 -8 -7 -7 -7 -6 -6 -6 -6 -5 -5 -5 -4 -4 -4 -------- Run | Jun Mat Mat Mat Fac Was Fac Fac Was Fac Ext Fac Upp Upp Fac Upp War Total Allies 26 | . . . . . 1 . . 1 . 19 . . . . . 5 Largest Group 11 | . . . . . 1 . . 1 . 11 . . . . . 5 Highest-Rated Group 328 | . . . . . 31 . . 31 . 328 . . . . . 278 Highest-Rated Ally 65 | . . . . . 31 . . 31 . 39 . . . . . 65 Total Orders 6 | . . . . . . . . . . . . . . . . 6 GUARD 1 | . . . . . . . . . . . . . . . . 1 AID 1 | . . . . . . . . . . . . . . . . 1 EXPLORE 4 | . . . . . . . . . . . . . . . . 4 Ally Attacks 179 | . . . . . 8 . . 18 . 143 . . . . . 10 Total Damage 3632 | . . . . . 167 . . 296 . 2776 . . . . . 393 Kills 18 | . . . . . . . . 1 . 15 . . . . . 2 Allies Corrupted 1 | . . . . . . . . . . . . . . . . 1 Allies Melted 2 | . . . . . . . . . . . . . . . . 2 Intel | -11 -10 -9 -8 -7 -7 -7 -6 -6 -6 -6 -5 -5 -5 -4 -4 -4 ------- Run | Jun Mat Mat Mat Fac Was Fac Fac Was Fac Ext Fac Upp Upp Fac Upp War Robot Analysis Total 2 | . . 1 1 . . . . . . . . . . . . . Derelict Logs Recovered 5 | . . . . . . . . . . . . 2 3 . . . Drone Launches 31 | . . . . . . . . . . . . . . . . 31 Drone Recoveries 21 | . . . . . . . . . . . . . . . . 21 Exploration | -11 -10 -9 -8 -7 -7 -7 -6 -6 -6 -6 -5 -5 -5 -4 -4 -4 ------------- Run | Jun Mat Mat Mat Fac Was Fac Fac Was Fac Ext Fac Upp Upp Fac Upp War Turns Passed 18913 | 70 482 1024 1579 1723 193 3930 296 273 882 1551 1676 1161 724 1039 689 1621 Spaces Moved 10265 | 42 281 530 745 840 93 2133 124 116 442 724 908 981 567 471 439 829 Core 13 | 6 . . . . 2 . . . . . . . . . 2 3 Treads 4639 | 36 281 530 275 15 39 2133 124 116 442 579 . . . . . 69 Legs 5032 | . . . 470 825 52 . . . . 145 908 981 567 471 437 176 Wheels . | . . . . . . . . . . . . . . . . . Hover 581 | . . . . . . . . . . . . . . . . 581 Flight . | . . . . . . . . . . . . . . . . . Fastest Speed 50 | 50 160 160 120 120 120 160 153 153 165 120 112 112 112 120 50 58 Average Speed 148 | 144 160 160 136 159 151 168 226 201 175 172 114 112 117 137 120 153 Slowest Speed 550 | 160 160 160 165 190 550 250 250 233 233 490 120 112 120 190 190 250 Overloaded Moves . | . . . . . . . . . . . . . . . . . Propulsion Burnouts . | . . . . . . . . . . . . . . . . . Robots Hopped . | . . . . . . . . . . . . . . . . . Cave-ins Triggered . | . . . . . . . . . . . . . . . . . Exploration Rate (%) 46 | 5 47 45 62 27 78 40 3 81 15 68 16 98 61 8 65 74 Regions Visited 16 Branch Regions 5 Pre-discovered Areas 3 | . . . . . . . . . . . . 1 2 . . . Known Exits Taken 4 | . 1 1 1 . . . . . . . . . . 1 . . Unknown Exits Taken 8 | 1 . . . . . 1 . . 1 1 1 1 1 . 1 . Scrap Searched 6 | . . . . . . . . . . . . 3 2 . 1 . Spaces Dug 15 | . . . . . . 7 . . 2 . . . . 2 4 . Terrain Destroyed 272 | . . 3 4 37 3 30 . 1 81 31 24 . . 2 4 52 Melee 6 | . . . . . . . . . . . . . . 2 4 . Projectile 111 | . . . . 12 3 30 . 1 9 31 1 . . . . 24 AOE 155 | . . 3 4 25 . . . . 72 . 23 . . . . 28 Terrain Rammed . | . . . . . . . . . . . . . . . . . Walls Destroyed . | . . . . . . . . . . . . . . . . . Machines Disabled . | . . . . . . . . . . . . . . . . . Actions | -11 -10 -9 -8 -7 -7 -7 -6 -6 -6 -6 -5 -5 -5 -4 -4 -4 --------- Run | Jun Mat Mat Mat Fac Was Fac Fac Was Fac Ext Fac Upp Upp Fac Upp War Total 12905 | 48 299 643 1104 1112 122 2421 136 139 525 966 1404 1012 598 754 516 1106 Wait 1179 | . 2 12 135 69 . 157 . . 44 73 356 4 3 199 14 111 Move 10251 | 41 280 529 744 840 92 2132 124 115 441 723 907 980 566 470 438 829 Hop . | . . . . . . . . . . . . . . . . . Pick Up 137 | . 1 16 21 29 2 15 2 2 4 4 19 2 5 6 2 7 Fast Attach 93 | 6 2 1 12 11 3 10 . . 1 2 14 . . 5 4 22 Attach 55 | . . 1 6 14 . 5 3 . 2 5 4 1 1 3 3 7 Detach 35 | . 1 . 3 6 . 5 1 . 1 4 2 . . . . 12 Swap 126 | 1 1 14 25 20 . 13 2 1 4 1 15 4 5 9 3 8 Drop 167 | . 2 17 27 27 2 22 . 3 5 6 17 3 4 5 . 27 Fire 484 | . 7 31 67 96 23 54 4 18 22 58 24 . . . 18 62 Melee 254 | . . 22 64 . . . . . . . 46 17 14 57 34 . Ram . | . . . . . . . . . . . . . . . . . Kick . | . . . . . . . . . . . . . . . . . Crush 18 | . 3 . . . . 8 . . 1 6 . . . . . . Escape Stasis . | . . . . . . . . . . . . . . . . . Rewire 106 | . . . . . . . . . . 84 . 1 . . . 21 Trap . | . . . . . . . . . . . . . . . . . Miscellaneous . | . . . . . . . . . . . . . . . . . Route ------- -11/Junkyard -10/Materials (discovered 2 exits: *Mat / [*Min]) -9/Materials (discovered 2 exits: *Mat / *Min) -8/Materials (discovered 4 exits: *Fac x2 / [*Sto] / Gar) -7/Factory -7/Waste -7/Factory (discovered 2 exits: *Fac / [*Low]) -6/Factory -6/Waste -6/Factory -6/Extension -5/Factory -5/Upper Caves -5/Upper Caves -4/Factory -4/Upper Caves -4/Warlord History --------- Turn | Location | Event 3 | -11/Junkyard | Discovered new exit (range 16) 71 | -11/Junkyard | Entered Materials 137 | -10/Materials | Discovered new exit (range 6) 309 | -10/Materials | Build established: Mutant 362 | -10/Materials | Discovered new exit (range 15) 551 | -10/Materials | Identified exit to Materials 553 | -10/Materials | Entered another Materials area 553 | -9/Materials | Evolved 2 slots: Utility x2 1023 | -9/Materials | Discovered new exit (range 12) 1085 | -9/Materials | Build established: Scavenger-Mutant 1087 | -9/Materials | Identified exit to Mines 1433 | -9/Materials | Discovered new exit (range 10) 1453 | -9/Materials | Identified exit to Materials 1577 | -9/Materials | Entered another Materials area 1577 | -8/Materials | Evolved 2 slots: Propulsion x1, Utility x1 1607 | -8/Materials | Build established: Mutant 1630 | -8/Materials | Repaired Lgt. Treads 1870 | -8/Materials | Repaired Hrd. Light Armor Plating 2165 | -8/Materials | Repaired Lgt. Treads 2182 | -8/Materials | Identified exit to Garrison 2220 | -8/Materials | Garrison activated, responded to threat 2270 | -8/Materials | Lost 3 parts (1n1u1w) 2287 | -8/Materials | Build established: Hacker-Mutant 2454 | -8/Materials | Destroyed 8 combat bots 2518 | -8/Materials | Discovered new exit (range 16) 2576 | -8/Materials | Discovered new exit (range 4) 2962 | -8/Materials | Build established: Mutant 3140 | -8/Materials | Discovered new exit (range 13) 3153 | -8/Materials | Identified exit to Factory 3156 | -8/Materials | Entered Factory 3156 | -7/Factory | Evolved 2 slots: Power x1, Utility x1 4104 | -7/Factory | Discovered new exit (range 15) 4281 | -7/Factory | Cargo convoy interrupted 4377 | -7/Factory | Lost 14 parts (2p3n7u2w) 4589 | -7/Factory | Build established: Scavenger-Mutant 4606 | -7/Factory | Destroyed 8 combat bots 4879 | -7/Factory | Sucked down chute 4879 | -7/Factory | Entered Waste 4880 | -7/Waste | Met a frightened Derelict 4894 | -7/Waste | EMP discharged 4897 | -7/Waste | Spotted C-40 Crusher 4899 | -7/Waste | Spotted C-40 Crusher 4902 | -7/Waste | Build established: Mutant 4907 | -7/Waste | Destroyed C-40 Crusher 4916 | -7/Waste | Destroyed C-40 Crusher 4921 | -7/Waste | Spotted C-40 Crusher 4938 | -7/Waste | Spotted C-40 Crusher 4947 | -7/Waste | Destroyed C-40 Crusher 4951 | -7/Waste | Destroyed C-40 Crusher 4953 | -7/Waste | Spotted C-40 Crusher 4953 | -7/Waste | Spotted C-40 Crusher 4958 | -7/Waste | Destroyed C-40 Crusher 4969 | -7/Waste | Crushed by Compactor (1 part destroyed) 4972 | -7/Waste | Crushed by Compactor (0 parts destroyed, 2 dropped) 4977 | -7/Waste | Crushed by Compactor (0 parts destroyed, 1 dropped) 4978 | -7/Waste | Destroyed C-40 Crusher 4994 | -7/Waste | EMP discharged 4994 | -7/Waste | System corruption reached 10% 5048 | -7/Waste | Discovered new exit (range 13) 5072 | -7/Waste | Entered Factory 6144 | -7/Factory | Fabricated Hrd. Medium Armor Plating (x1) 6542 | -7/Factory | Discovered new exit (range 10) 6742 | -7/Factory | Build established: Scavenger-Mutant 6903 | -7/Factory | Discovered new exit (range 6) 8603 | -7/Factory | Build established: Mutant 9002 | -7/Factory | Entered another Factory area 9002 | -6/Factory | Evolved 2 slots: Utility x2 9298 | -6/Factory | Sucked down chute 9298 | -6/Factory | Entered Waste 9299 | -6/Waste | Met a frightened Derelict 9313 | -6/Waste | EMP discharged 9325 | -6/Waste | Spotted C-40 Crusher 9334 | -6/Waste | Destroyed C-40 Crusher 9336 | -6/Waste | Spotted C-40 Crusher 9339 | -6/Waste | Allies destroyed C-40 Crusher 9345 | -6/Waste | Destroyed C-40 Crusher 9347 | -6/Waste | Spotted C-40 Crusher 9347 | -6/Waste | Spotted C-40 Crusher 9385 | -6/Waste | Destroyed C-40 Crusher 9390 | -6/Waste | Destroyed C-40 Crusher 9396 | -6/Waste | Spotted C-40 Crusher 9413 | -6/Waste | EMP discharged 9413 | -6/Waste | System corruption reached 10% 9426 | -6/Waste | Destroyed C-40 Crusher 9513 | -6/Waste | EMP discharged 9537 | -6/Waste | Discovered new exit (range 16) 9571 | -6/Waste | Entered Factory 9716 | -6/Factory | Build established: Scavenger-Mutant 9751 | -6/Factory | Repaired Unknown Protection 9803 | -6/Factory | Spotted B-75 Beast 9858 | -6/Factory | Identified exit to DSF 10357 | -6/Factory | Garrison activated, responded to threat 10394 | -6/Factory | Cargo convoy interrupted 10446 | -6/Factory | Discovered new exit (range 6) 10453 | -6/Factory | Entered Extension 10559 | -6/Extension | Rescued a captive Derelict 10560 | -6/Extension | Rescued a captive Derelict 10668 | -6/Extension | Rescued a captive Derelict 10668 | -6/Extension | Rescued a captive Derelict 10701 | -6/Extension | Rescued a captive Derelict 11012 | -6/Extension | Spotted B-75 Beast 11043 | -6/Extension | Spotted B-75 Beast 11052 | -6/Extension | Allies destroyed B-75 Beast 11065 | -6/Extension | Destroyed B-75 Beast 11115 | -6/Extension | Discovered new exit (range 3) 11162 | -6/Extension | Rescued a captive Derelict 11392 | -6/Extension | Rescued a captive Derelict 11393 | -6/Extension | Rescued a captive Derelict 11753 | -6/Extension | Disrupted transfer network 12004 | -6/Extension | Entered Factory 12004 | -5/Factory | Evolved 2 slots: Propulsion x1, Utility x1 12034 | -5/Factory | Lost 3 parts (3u) 12174 | -5/Factory | Repaired Carbon-fiber Leg 12237 | -5/Factory | Repaired Myomer Leg 12290 | -5/Factory | Repaired Fission Core 12661 | -5/Factory | Garrison activated, responded to threat 13077 | -5/Factory | Repaired Hrd. Medium Armor Plating 13499 | -5/Factory | Repaired Imp. Thermal Shield 13545 | -5/Factory | Repaired Imp. Medium Armor Plating 13603 | -5/Factory | Discovered new exit (range 4) 13680 | -5/Factory | Entered Upper Caves 13721 | -5/Upper Caves | Encountered a Warlord checkpoint 13723 | -5/Upper Caves | Learned location of Armory (-4) 13955 | -5/Upper Caves | Learned Factory trap positions 14254 | -5/Upper Caves | Discovered new exit (range 13) 14841 | -5/Upper Caves | Entered another Upper Caves area 14843 | -5/Upper Caves | Attracted the attention of an 0b10 checkpoint 15454 | -5/Upper Caves | Discovered new exit (range 15) 15565 | -5/Upper Caves | Entered Factory 15565 | -4/Factory | Evolved 2 slots: Utility x2 15566 | -4/Factory | Identified exit to Upper Caves 15567 | -4/Factory | Loaded intel: 83 trap records 15652 | -4/Factory | Repaired Myomer Leg 15716 | -4/Factory | Repaired Adv. Thermal Shield 15757 | -4/Factory | Repaired Carbon-fiber Leg 16604 | -4/Factory | Entered Upper Caves 16984 | -4/Upper Caves | Encountered a Warlord checkpoint 17139 | -4/Upper Caves | Ambushed by research squad 17188 | -4/Upper Caves | Core integrity fell below 50% 17231 | -4/Upper Caves | Lost 14 parts (1p2n7u4w) 17281 | -4/Upper Caves | A Derelict revealed a hidden shortcut to "reach the base" 17293 | -4/Upper Caves | Entered Warlord 17353 | -4/Warlord | System corruption cleaned by Quarantine Array 17457 | -4/Warlord | Build established: Mutant 17460 | -4/Warlord | Found Signal Generator 17770 | -4/Warlord | Build established: Scavenger-Mutant 17799 | -4/Warlord | Visited the Vortex Lab 17805 | -4/Warlord | Warlord's base attacked by MAIN.C 17820 | -4/Warlord | Found Prototype Energy Gun 17824 | -4/Warlord | Found Prototype Energy Gun 17887 | -4/Warlord | Identified Vortex Shotgun (x2) 18105 | -4/Warlord | Spotted B-90 Cyclops 18155 | -4/Warlord | Warlord forces counterattacked 18189 | -4/Warlord | Spotted Striker 18231 | -4/Warlord | Met Warlord 18237 | -4/Warlord | Found Prototype Device 18237 | -4/Warlord | Identified Minesniffer Drone Bay 18239 | -4/Warlord | Found Minesniffer Drone Bay 18330 | -4/Warlord | Found Prototype Energy Gun 18359 | -4/Warlord | Spotted B-86 Titan 18359 | -4/Warlord | Spotted B-90 Cyclops 18399 | -4/Warlord | Destroyed B-86 Titan 18400 | -4/Warlord | Spotted Executioner 18404 | -4/Warlord | Destroyed Executioner 18480 | -4/Warlord | Warlord base infiltrated, sounded retreat 18505 | -4/Warlord | Spotted Striker 18521 | -4/Warlord | Destroyed Striker 18587 | -4/Warlord | Found Prototype Reactor 18588 | -4/Warlord | Identified Vortex Chain Reactor 18596 | -4/Warlord | Found Prototype Processor 18596 | -4/Warlord | Identified Exp. Target Analyzer 18599 | -4/Warlord | Found Prototype Device 18599 | -4/Warlord | Identified Exp. Focal Shield 18620 | -4/Warlord | Found Prototype Device 18620 | -4/Warlord | Identified Exp. Cloaking Device 18704 | -4/Warlord | Spotted Striker 18729 | -4/Warlord | Destroyed Striker 18750 | -4/Warlord | Spotted Striker 18766 | -4/Warlord | Destroyed Striker 18878 | -4/Warlord | Core integrity fell below 20% 18901 | -4/Warlord | Spotted Striker 18910 | -4/Warlord | Spotted Executioner 18914 | -4/Warlord | Destroyed by X-87 Electro with Compact HERF Cannon Last Messages --------------- 18901_ Slug penetrates Wall. 18902_ Acquired 28 matter. 18903_ H-77 Assassin Myomer Leg blasted off. 18903_ Acquired 8 matter. 18903_ Weapon Cycler destroyed. 18904_ Acquired 52 matter. 18904_ Exp. Myomer Leg destroyed. 18904_ Vortex Chain Reactor destroyed. 18904_ Target Analyzer destroyed. 18905_ ANNOUNCEMENT: Detected 1 Saboteur squad, 1 Programmer squad, 1 Melee squad, 1 Behemoth squad, with prototype support. 18905_ Acquired Flexi-carbon Leg. 18907_ G-67 Veteran knocked back. 18907_ H-77 Assassin destroyed. 18908_ Acquired 2 matter. 18911_ Flexi-carbon Leg destroyed. 18912_ G-67 Veteran suffers critical hit (Burn). 18912_ Exp. Myomer Leg destroyed. 18913_ G-67 Veteran heat short circuits Field Laser. [Achievement: 20k Club] Map ----- +----------------------------------------------------+ | ?????????????????????????????????????##### | | ?????????????????????????????????????# | | ?????????????????????????????????????+ | | ?????????????????????????????????????# | | ?????????????????????????????????????# | | ?????????????????????????????????????# | | ?????????????????????????????????????# | | ???????????????????????????????# ########+ | | ???????????????????????????????+ ^ | | ?????????????????????????????????##### ^ | | ?????????????????????????????????????# | | ????????????####???##############????#^ | | ??????????## "##??# # ==#????# ^"" | | ??????????;!" "##?# * " * #????#^ "" | | ??????????# !| ""#?# %! #????# "" | | ??????????#[ ""### ! #????# | | ??????????## "## # %* # =#????# | | ??????????# ##"!*= #########????# | | ??????????#! # #=%% ! "" """######+##+ | | ??????????# ### %|! "## [! | | ??????????#;;;;s;#;#%[=% "## ! | | ??????????# ;% !%%[[%%!% "## % | | ??????????# ; &=%[[%%% ""##= % *! | | ??????????### %=%=!%%! "##%= % [% | | ????????????#%[%=%%# % "## *%=[! | | ???????????##^&[ @%# "## | | ???????????#;%[ggx[# """"""""## | | ???????????## g[%l!##############" ! | | ??????????### %gg=;;"""####"##%"""" ""##* | | ??????????# K% E %[ ==%[ !% % !%! | | ??????????# %%bgi b !% %!%! * =!%%% | | ??????????### ##;; ;;;""##"""##"" * !%%% | | ????????????#### ;;; ;## =="/ ""! | | ???????????????# ;!! !;## !"" " ! | | ???????????????###!!! ;## ## | | ?????????????????#!!% ; # ## | | ?????????????????#" ";## ## #### | | ?????????????????#"" ";## ## #?# | | ?????????????????######## ## #?# | | ????????????????????????# ## %###= | | ????????????????????????# + % ##= | | ????????????????????????########### !#### | | ?????????????????????????########## #?? | | ?????????????????????????# # ##?? | | ?????????????????????????# """# #??? | | ?????????????????????????# """# #### | | ?????????????????????????# """# # | | ?????????????????????????# # # | | ?????????????????????????# """# # | | ?????????????????????????# """# # | +----------------------------------------------------+ Best States ------------- Heat Dissipation 93 Energy Generation 55 Energy Capacity 850 Matter Stores 300 Matter Capacity 300 Sight Range 16 Robot Scan Range 15 Terrain Scan Density 10 ECM Strength 1 Jamming Range 12 Cloak Strength 4 Armor Coverage 1275 Resistance: KI 50 Resistance: TH 50 Resistance: EX 70 Resistance: EM 45 Resistance: I 20 Resistance: S 20 Resistance: P 20 Weapon Shielding 66 Weapon Cycling 30 Evasion (%) 61 Targeting Accuracy 8 Target Analysis 13 Core Analysis 9 Armor Integrity Analysis 30 Recoil Reduction 3 Particle Charging 15 Offensive Hacking 20 Item Schematics ----------------- Lgt. Treads | -9/Materials | Scanalyzed Hrd. Medium Armor Plating | -8/Materials | Scanalyzed Datajack | -8/Materials | Scanalyzed Hyp. Coil Gun | -4/Factory | Scanalyzed Robot Schematics ------------------ None Fabricated ------------ Hrd. Medium Armor Plating | x1 | -7/Factory Alien Tech Used ----------------- None Achievements -------------- 20k Club A Powerful Ally? Below Collateral Damage Ooh, Shiny! Part-time Excavator Prolific Hacker Release The Drones! Respectable Loadout Slippery One Challenges ------------ None Game ------ Seed LauncherCommMicrothruster Manual? 0 Play Time 04:02:47 Cumulative 38.2 hours Start 2023.05.01 @ 16:26:33 End 2023.05.01 @ 21:01:45 Sessions 1 Manual Loads 0 Difficulty Adventurer Special Mode None Game No. 27 Rogue 13 Adventurer 14 Explorer 0 Win Type - Total 0 Types 0/0/0/0/0/0/0/0/0 Lore% 29 Gallery% 31 Achievement% 29 Wizard Run 0 Options --------- ASCII 0 Keyboard 1 Movement Numpad Keybinds 0 Fullscreen 2 Font 18/SmallcapsGlow Map View 76x50 Tactical HUD 1 Map Filters NONE Filters NONE Steam 1 RUN: f7673edd-a591-416a-b1b1-8e4c7dda134c